bitfinex/quotes_ETHUSD_20250406
["timestamp","ask_amount","ask_price","bid_price","bid_amount"]
[1743947146015,1.72306445,1762.4,1762.1,6.21]
[1743947146178,0.06856445,1762.4,1762.1,6.21]
[1743947146378,0.06856301,1762.5,1762.2,1.6478]
[1743947147271,0.06855855,1762.7,1762.2,1.6478]
[1743947147471,1.12096441,1762.7,1762.2,1.6478]
[1743947147699,1.12096441,1762.7,1762.1,6.21]
[1743947148297,1.6545,1762.6,1762.1,6.21]
[1743947148579,0.0685648,1762.5,1762.1,6.21]
[1743947148779,5.801,1762.4,1762.1,6.21]
[1743947149095,0.64866761,1762.3,1762.1,6.21]
[1743947149473,1.6649,1762.2,1762.1,0.05]
[1743947150909,8.6372,1762.2,1762.1,0.05]
[1743947151298,9.1872,1762.2,1762.1,0.05]
[1743947151709,3.97347,1761.7,1761.1,0.05]
[1743947151914,3.0,1761.5,1761.1,0.05]
[1743947152078,0.07098351,1761.4,1761.1,0.05]
[1743947152483,1.6649,1761.3,1761.1,0.05]
[1743947152792,0.07098873,1761.2,1761.1,0.05]
[1743947153104,0.07098871,1761.4,1761.1,1.627]
[1743947153282,3.65828758,1761.4,1761.1,0.05]
[1743947154193,3.07098871,1761.4,1761.1,0.05]
[1743947154905,0.07098871,1761.4,1761.1,0.05]
[1743947155121,0.07097656,1761.5,1761.1,0.05]
[1743947156827,1.6648,1761.4,1761.1,0.05]
[1743947157055,0.07098294,1761.3,1761.1,0.05]
[1743947158031,5.87034397,1761.3,1761.1,0.05]
[1743947158183,6.92385837,1761.3,1761.1,0.05]
[1743947160038,3.0,1761.2,1761.1,0.05]
[1743947160187,10.4678,1761.2,1761.1,0.05]
[1743947161538,10.53880295,1761.2,1761.1,0.05]
[1743947161686,13.94680295,1761.2,1761.1,0.05]
[1743947161893,1.6438,1760.7,1760.5,0.005]
[1743947162114,10.51882263,1760.6,1760.5,0.005]
[1743947162462,15.04473263,1760.6,1760.5,0.005]
[1743947162610,0.175,1760.1,1758.5,1.541]
[1743947162813,0.55,1759.7,1758.5,1.541]
[1743947163011,3.175,1759.5,1758.5,1.541]
[1743947163326,0.55,1759.2,1758.1,0.3]
[1743947163527,3.0,1758.6,1758.0,0.004]
[1743947163731,3.98089,1758.4,1756.9,2.0]
[1743947163913,3.98089,1758.4,1756.0,0.81]
[1743947163914,3.98905,1754.8,1754.7,9.95e-06]
[1743947164116,0.1,1753.7,1753.6,0.15467306]
[1743947164455,0.1,1753.7,1752.7,18.1480867]
[1743947164456,0.1,1752.8,1752.7,18.1480867]
[1743947164684,0.1,1752.8,1752.7,17.88237206]
[1743947164881,3.98765,1755.5,1752.7,17.88237206]
[1743947164882,9.9122,1754.4,1752.7,19.67060927]
[1743947165082,9.9122,1754.4,1751.6,1.6522]
[1743947165083,1.6292,1752.7,1751.4,2.005]
[1743947165237,0.0679029,1752.6,1751.4,2.005]
[1743947165443,0.1,1752.7,1751.4,0.855]
[1743947165638,10.29,1753.4,1751.5,0.1]
[1743947165639,10.29,1752.6,1751.5,0.1]
[1743947165872,0.87714736,1752.9,1751.7,3.99607]
[1743947166071,23.3248,1755.3,1752.4,0.1]
[1743947166281,8.751282,1755.2,1751.8,1.29831898]
[1743947166579,40.89,1756.9,1751.9,6.32143961]
[1743947166580,0.05,1756.9,1751.9,6.32143961]
[1743947166783,0.1,1758.1,1753.6,1.6522]
[1743947166984,0.05,1758.4,1756.5,0.05]
[1743947167295,2.11481192,1758.3,1756.8,0.1]
[1743947167588,3.97772,1759.8,1758.5,0.1]
[1743947167881,3.97671,1760.3,1757.2,3.9836]
[1743947167882,3.97729,1760.0,1759.0,0.05]
[1743947168086,3.97599,1760.6,1758.8,0.05]
[1743947168404,3.97698,1760.2,1758.8,0.05]
[1743947168602,1.6292,1760.4,1758.3,42.5982]
[1743947168603,0.9,1759.8,1758.3,0.88814183]
[1743947168908,3.9784,1759.5,1757.3,0.39836]
[1743947169070,3.98107,1758.4,1756.8,40.946]
[1743947169258,1.5718,1758.3,1756.5,0.398534]
[1743947169457,1.71554035,1759.1,1757.4,3.98305]
[1743947169664,1.71554035,1759.1,1757.6,3.98251]
[1743947169960,1.71554035,1759.1,1757.1,0.05]
[1743947170153,17.15540345,1757.7,1757.1,0.05]
[1743947170359,4.71554035,1757.6,1757.1,0.05]
[1743947170678,4.71554035,1757.6,1755.9,41.08304264]
[1743947170881,6.98315,1757.4,1755.2,40.95]
[1743947171083,3.0,1756.1,1755.1,0.05]
[1743947171395,0.555473,1757.4,1755.1,4.03833]
[1743947171581,3.96214,1757.1,1756.6,0.29134859]
[1743947171782,3.0,1756.8,1755.5,40.95]
[1743947172092,0.3,1756.7,1755.5,3.98742]
[1743947172269,3.0,1757.1,1755.6,40.95]
[1743947172470,0.555473,1757.4,1755.7,40.95]
[1743947172671,0.555473,1757.4,1755.9,3.98648]
[1743947172672,17.15540345,1756.4,1755.9,3.98648]
[1743947172975,17.15540345,1756.4,1755.8,3.98678]
[1743947173177,17.15540345,1756.4,1756.1,3.98594]
[1743947173699,17.15540345,1756.4,1755.8,4.493685]
[1743947173895,17.15540345,1756.4,1756.0,3.98617]
[1743947174106,17.15540345,1756.4,1755.9,3.98655]
[1743947174270,3.0,1757.2,1756.3,3.98565]
[1743947174598,0.05,1756.9,1755.8,4.493685]
[1743947174795,0.05,1756.9,1755.9,4.4359085]
[1743947174995,0.045,1756.9,1755.9,0.4493685]
[1743947175162,0.045,1756.9,1755.7,40.95]
[1743947175368,6.9847,1756.8,1755.7,40.95]
[1743947175563,3.0,1756.8,1755.7,40.95]
[1743947175768,3.0,1756.7,1755.7,44.9368]
[1743947175988,8.28371884,1756.8,1755.7,40.95]
[1743947176187,3.0,1756.7,1755.8,8.08177]
[1743947176378,3.0,1756.7,1755.9,3.98634]
[1743947176772,3.0,1756.7,1755.7,44.93693]
[1743947176971,3.0,1756.7,1755.7,40.95]
[1743947177207,11.03987314,1756.6,1756.2,3.98565]
[1743947177416,11.03987314,1756.6,1756.0,0.669]
[1743947177713,3.98597,1756.2,1754.9,42.5016]
[1743947177919,0.55,1756.2,1754.9,46.48947]
[1743947178071,3.0,1756.1,1755.0,4.648947]
[1743947178272,0.905,1756.2,1755.0,4.648947]
[1743947178582,0.49594248,1756.1,1754.2,1.5256]
[1743947178801,0.55,1756.0,1754.6,3.98934]
[1743947178977,3.0,1755.9,1754.2,3.0]
[1743947179298,0.49594248,1756.1,1755.0,0.55]
[1743947179498,0.045,1756.9,1755.7,3.98681]
[1743947179499,0.49594248,1756.0,1755.7,3.98681]
[1743947179800,0.49594248,1756.0,1755.8,3.98661]
[1743947180099,0.49594248,1756.0,1755.7,3.98681]
[1743947180100,11.03987314,1755.9,1755.7,3.98681]
[1743947180299,11.03987314,1755.9,1755.5,0.05695265]
[1743947180603,3.49594248,1755.8,1755.1,40.986]
[1743947180801,3.49594248,1755.8,1754.4,40.986]
[1743947181004,0.49594248,1755.8,1754.5,3.0]
[1743947181207,11.03987314,1755.9,1755.4,3.98756]
[1743947181208,0.49594248,1755.7,1755.4,3.98756]
[1743947181501,0.49594248,1755.7,1755.6,3.98724]
[1743947182003,11.03987314,1755.7,1755.6,3.98724]
[1743947182207,11.03987314,1755.7,1755.3,5.49474]
[1743947182504,11.03987314,1755.7,1755.1,3.98837]
[1743947182505,10.54393066,1755.7,1755.1,3.98837]
[1743947182681,10.54393066,1755.7,1754.7,1.507]
[1743947183001,10.54393066,1755.7,1755.5,3.98745]
[1743947183203,10.54393066,1755.7,1755.4,3.98766]
[1743947183408,10.54393066,1755.7,1755.5,3.98746]
[1743947183775,10.54393066,1755.7,1755.6,3.98724]
[1743947184408,10.54393066,1755.7,1755.2,3.98813]
[1743947184717,10.54393066,1755.7,1755.6,3.98724]
[1743947185291,0.05,1755.9,1755.8,3.98678]
[1743947185611,0.045,1756.9,1756.0,3.9861]
[1743947186117,0.045,1756.9,1756.1,3.98598]
[1743947186300,0.3495,1756.9,1756.0,3.9861]
[1743947186494,0.3495,1756.9,1756.1,3.98595]
[1743947186920,0.3495,1756.9,1756.3,3.98544]
[1743947187139,0.045,1756.9,1756.4,4.04223924]
[1743947187323,0.045,1756.9,1756.5,3.98509]
[1743947187618,1.83472103,1756.8,1756.7,3.98474]
[1743947187806,1.83472103,1756.8,1756.7,0.398474]
[1743947188006,1.83472103,1756.8,1756.2,40.996]
[1743947189320,1.83472103,1756.8,1756.2,34.66918987]
[1743947189516,1.83472103,1756.8,1755.7,1.507]
[1743947189716,1.83472103,1756.8,1755.5,44.98327]
[1743947189921,3.0,1756.7,1755.5,45.494327]
[1743947190218,3.9853,1756.5,1755.5,45.494327]
[1743947190421,1.83472103,1756.8,1755.7,3.98696]
[1743947190621,1.83472103,1756.8,1755.5,45.494327]
[1743947190920,1.83472103,1756.7,1755.9,3.98636]
[1743947191124,1.83472103,1756.7,1756.0,3.98623]
[1743947191294,1.83472103,1756.7,1756.3,3.98561]
[1743947191495,1.83472103,1756.7,1756.2,3.98568]
[1743947191695,1.83472103,1756.7,1755.9,3.98655]
[1743947191913,1.83472103,1756.7,1756.0,4.384975]
[1743947192238,1.83472103,1756.7,1755.6,8.5366627]
[1743947192239,3.0,1756.6,1755.6,22.1084527]
[1743947192532,1.83472103,1756.7,1755.7,3.98701]
[1743947192751,4.83472103,1756.7,1755.6,22.1085327]
[1743947192913,0.045,1756.9,1755.6,22.1085327]
[1743947192914,2.31819313,1756.6,1755.9,3.9864]
[1743947193244,2.31819313,1756.6,1756.3,3.98555]
[1743947193245,1.83472103,1756.6,1756.3,3.98555]
[1743947193399,1.83472103,1756.6,1756.3,3.98475]
[1743947193594,1.83472103,1756.6,1756.0,3.98628]
[1743947193788,1.83472103,1756.6,1756.4,3.98526]
[1743947194101,1.83472103,1756.6,1756.5,3.98519]
[1743947194297,0.045,1756.9,1756.8,3.98451]
[1743947194999,0.045,1756.9,1756.4,44.9833]
[1743947195222,0.045,1756.9,1756.4,40.998]
[1743947195598,0.045,1756.9,1756.4,44.98342]
[1743947195923,0.045,1756.9,1756.4,40.998]
[1743947195924,0.51422132,1756.8,1756.4,40.998]
[1743947196330,6.99201813,1756.8,1756.4,40.998]
[1743947196700,6.99201813,1756.8,1756.1,0.398628]
[1743947196897,0.41249213,1756.7,1756.2,3.98586]
[1743947197295,0.51422132,1756.6,1755.8,7.695]
[1743947197634,0.51422132,1756.6,1755.8,5.52177]
[1743947197797,0.5155158,1756.5,1755.8,5.52177]
[1743947198000,0.41239323,1756.4,1755.8,5.52177]
[1743947198200,0.5155158,1756.4,1755.8,6.80636233]
[1743947198438,0.5155158,1756.4,1755.9,3.98641]
[1743947198648,0.5155158,1756.4,1755.8,1.535]
[1743947198806,0.92908468,1756.3,1756.2,3.98587]
[1743947199011,0.92908468,1756.3,1755.8,1.535]
[1743947199407,6.47779681,1756.7,1756.0,3.98633]
[1743947199720,0.93114499,1756.6,1756.2,3.98578]
[1743947199917,0.93114499,1756.6,1756.1,3.9861]
[1743947199918,1.44846539,1756.6,1756.4,3.98533]
[1743947200128,1.03461959,1756.6,1756.4,3.98528]
[1743947200331,0.51729919,1756.6,1755.8,7.695]
[1743947200526,0.51729919,1756.6,1756.3,3.98551]
[1743947200725,0.51729919,1756.6,1756.5,3.98519]
[1743947200928,0.51798637,1756.8,1756.3,3.98565]
[1743947201129,0.51798637,1756.8,1756.0,0.55]
[1743947201331,0.51798637,1756.8,1756.5,3.98509]
[1743947201539,0.045,1756.9,1756.3,3.9855]
[1743947201731,0.51815554,1756.8,1756.6,3.98494]
[1743947201923,0.51815554,1756.8,1756.7,3.98474]
[1743947202910,0.045,1756.9,1756.8,3.98451]
[1743947203145,0.045,1756.9,1756.8,5.57642129]
[1743947203443,0.045,1756.9,1756.6,40.989]
[1743947203652,0.045,1756.9,1756.8,3.98451]
[1743947205835,6.61757567,1756.9,1756.8,3.98451]
[1743947206243,6.61757567,1756.9,1756.6,40.989]
[1743947206413,6.61757567,1756.9,1756.6,38.14322069]
[1743947206810,13.389,1757.7,1756.6,38.14322069]
[1743947206811,0.05,1757.9,1756.7,8.21]
[1743947207053,0.05,1757.9,1757.3,3.98326]
[1743947207216,0.05,1757.9,1757.0,3.98397]
[1743947207547,0.05,1757.9,1757.4,3.98313]
[1743947207753,0.05,1757.9,1757.7,3.98232]
[1743947207914,0.05,1757.9,1757.8,3.98225]
[1743947208118,16.83729332,1757.9,1757.7,3.98229]
[1743947208347,16.83729332,1757.9,1757.8,3.98225]
[1743947208517,16.83729332,1757.9,1757.8,4.778704]
[1743947208713,16.83729332,1757.9,1757.8,4.76510022]
[1743947208917,16.83729332,1757.9,1757.7,3.98229]
[1743947209336,16.83729332,1757.9,1757.8,3.98225]
[1743947209542,16.83729332,1757.9,1757.7,3.98228]
[1743947209919,16.83729332,1757.9,1757.8,3.98225]
[1743947210257,16.83729332,1757.9,1757.5,48.94254]
[1743947210442,16.83729332,1757.9,1757.6,3.98267]
[1743947210819,16.83729332,1757.9,1757.5,44.95972]
[1743947211150,16.83729332,1757.9,1757.6,3.98267]
[1743947211361,16.83729332,1757.9,1757.6,3.98252]
[1743947211653,0.05,1757.9,1757.6,7.96512]
[1743947211852,0.05,1757.9,1757.7,0.05688192]
[1743947212268,0.05,1757.9,1757.5,40.977]
[1743947212419,0.05,1757.9,1757.0,1.5714]
[1743947212865,0.05,1757.9,1757.0,6.110916]
[1743947213157,0.05,1757.9,1757.0,6.110886]
[1743947213368,0.05,1757.9,1757.1,4.04061261]
[1743947213663,0.05,1757.9,1757.0,4.539486]
[1743947213863,1.31199623,1757.8,1756.8,61.67183]
[1743947214161,1.31199623,1757.8,1756.9,9.35449]
[1743947214364,1.31199623,1757.8,1756.9,5.3703]
[1743947214566,1.31199623,1757.8,1756.9,9.35455]
[1743947214567,0.41199623,1757.7,1756.9,9.35455]
[1743947214721,0.41199623,1757.7,1757.0,3.98392]
[1743947215061,0.41199623,1757.7,1756.9,9.35449]
[1743947215245,0.41199623,1757.8,1756.9,9.35449]
[1743947215567,0.75819585,1757.8,1757.1,3.9837]
[1743947215778,0.41199623,1757.8,1757.2,3.98346]
[1743947215933,0.05,1757.9,1757.2,3.98346]
[1743947216137,3.05,1757.9,1756.9,9.35447]
[1743947216335,3.0,1757.7,1756.9,5.3703]
[1743947216539,0.305,1757.8,1756.8,44.95551]
[1743947216868,0.41235467,1757.6,1756.9,3.98427]
[1743947217071,6.13112547,1757.6,1757.4,3.98313]
[1743947217365,5.7187708,1757.6,1757.0,0.55]
[1743947217655,5.7187708,1757.6,1757.4,7.96608]
[1743947217834,5.7187708,1757.6,1757.4,3.98303]
[1743947218155,5.7187708,1757.6,1757.5,3.98293]
[1743947218353,5.7187708,1757.6,1757.5,4.78521044]
[1743947218966,0.05,1757.9,1757.7,3.98235]
[1743947219255,0.05,1757.9,1757.8,3.98145]
[1743947221184,0.05,1757.9,1757.7,3.98235]
[1743947221376,0.05,1757.9,1757.8,3.98225]
[1743947221951,0.05,1757.9,1757.8,4.77871]
[1743947222584,0.05,1757.9,1757.8,3.98225]
[1743947222895,0.05,1757.9,1757.6,15.74755]
[1743947223103,0.05,1757.9,1757.6,3.98255]
[1743947223404,0.05,1757.9,1757.8,3.98225]
[1743947224091,0.05,1757.9,1757.7,3.98245]
[1743947224299,8.62592855,1757.9,1757.7,3.98232]
[1743947224649,8.62592855,1757.9,1757.8,3.98225]
[1743947225080,8.62592855,1757.9,1757.7,3.98232]
[1743947225471,8.62592855,1757.9,1757.7,8.02152586]
[1743947225792,8.62592855,1757.9,1757.8,3.98225]
[1743947225994,8.62592855,1757.9,1757.8,4.78439559]
[1743947226492,8.62592855,1757.9,1757.8,3.98225]
[1743947226687,8.62592855,1757.9,1757.6,10.14269]
[1743947226993,8.62592855,1757.9,1757.6,14.12526]
[1743947227205,8.62592855,1757.9,1757.7,3.98235]
[1743947227389,8.62592855,1757.9,1757.8,3.98225]
[1743947227602,8.57592855,1757.8,1757.7,3.98235]
[1743947228174,8.57592855,1757.8,1757.7,4.03923747]
[1743947228683,8.57592855,1757.8,1757.7,11.61742922]
[1743947228883,8.57592855,1757.8,1757.7,11.56054175]
[1743947229075,8.57592855,1757.8,1757.7,10.14235]
[1743947229276,8.57592855,1757.8,1757.7,10.19923473]
[1743947229678,8.57592855,1757.8,1757.7,10.14235]
[1743947229997,8.57592855,1757.8,1757.7,10.19923441]
[1743947230302,8.57592855,1757.8,1757.7,51.09935]
[1743947230602,8.57592855,1757.8,1757.7,56.607553]
[1743947231006,8.57592855,1757.8,1757.7,51.09935]
[1743947231217,8.57592855,1757.8,1757.7,40.957]
[1743947231389,8.57592855,1757.8,1757.7,44.93947]
[1743947232513,8.57592855,1757.8,1757.7,51.09947]
[1743947232680,8.57592855,1757.8,1757.7,54.09947]
[1743947232881,8.57592855,1757.8,1757.7,59.70657982]
[1743947233207,8.57592855,1757.8,1757.7,56.70657982]
[1743947234314,8.55e-06,1757.8,1757.7,57.25657982]
[1743947234498,0.29566636,1758.7,1758.6,3.98043]
[1743947234680,0.29566636,1758.7,1758.5,3.98061]
[1743947234881,1.5324,1759.2,1758.4,3.98088]
[1743947235080,1.82816898,1759.2,1758.3,15.20808]
[1743947235277,0.41513241,1758.8,1758.3,15.20808]
[1743947235472,0.41513241,1758.8,1758.3,11.227]
[1743947235776,1.82816898,1759.2,1758.5,3.98066]
[1743947235985,1.82816898,1759.2,1758.6,3.98032]
[1743947236189,1.82816898,1759.2,1758.6,3.98039]
[1743947236403,1.5324,1759.2,1758.6,7.96066]
[1743947236711,1.5324,1759.2,1758.8,3.97998]
[1743947236873,1.5324,1759.2,1758.6,3.98032]
[1743947237503,1.5324,1759.2,1758.7,3.98003]
[1743947237684,1.5324,1759.2,1758.7,4.03688243]
[1743947238068,1.5324,1759.2,1758.5,3.98066]
[1743947238310,0.05685243,1759.1,1758.7,3.98021]
[1743947238507,1.5324,1759.2,1758.7,3.98021]
[1743947238688,1.5324,1759.2,1758.8,3.97998]
[1743947239074,0.05685243,1759.1,1758.7,3.98005]
[1743947239378,1.5324,1759.2,1758.8,3.97998]
[1743947239729,0.05685243,1759.1,1758.8,3.97998]
[1743947239875,1.5324,1759.2,1758.8,3.97998]
[1743947240685,0.05685243,1759.1,1758.5,3.98047]
[1743947240905,0.05685243,1759.1,1758.8,3.97998]
[1743947241594,1.5324,1759.2,1758.8,3.97998]
[1743947242721,1.5324,1759.6,1758.8,4.78167022]
[1743947242884,0.10685243,1759.9,1758.8,10.94167022]
[1743947243392,0.53033135,1759.9,1758.8,10.13998]
[1743947243603,4.50784135,1759.9,1758.8,10.13998]
[1743947243785,0.53033135,1759.9,1758.8,10.13998]
[1743947244128,0.53033135,1759.9,1758.8,10.19682703]
[1743947244292,1.5324,1759.3,1758.6,40.941]
[1743947244496,0.05685243,1759.2,1758.6,40.941]
[1743947245294,9.63644247,1758.9,1758.6,40.941]
[1743947245516,0.05685243,1758.8,1758.2,10.14133]
[1743947245698,0.05685243,1758.8,1758.2,6.16]
[1743947245699,1.5324,1758.7,1758.2,6.16]
[1743947245884,0.05685243,1758.6,1758.2,6.16]
[1743947246388,0.05685243,1758.6,1758.0,3.98162]
[1743947246580,0.05685243,1758.6,1757.9,44.91801]
[1743947246581,0.05685243,1758.6,1757.9,40.936]
[1743947247134,0.41378224,1758.5,1757.9,40.936]
[1743947247286,0.05685243,1758.4,1757.9,40.936]
[1743947247730,0.41378224,1758.5,1758.0,3.98166]
[1743947248027,0.05685243,1758.4,1757.9,49.409726]
[1743947248232,0.05685243,1758.4,1757.9,40.936]
[1743947248410,0.05685243,1758.6,1757.9,40.936]
[1743947248614,3.05685243,1758.6,1757.9,40.936]
[1743947248817,3.05685243,1758.6,1757.6,3.98268]
[1743947248818,6.683013,1758.5,1757.6,3.98268]
[1743947249016,0.05685243,1758.4,1757.6,3.98268]
[1743947249201,1.14482635,1758.4,1757.6,0.796547]
[1743947249396,1.14482635,1758.4,1757.6,4.779237]
[1743947249628,0.41398738,1758.3,1757.6,4.779237]
[1743947249933,1.6425,1758.1,1757.6,0.796547]
[1743947250115,0.05685243,1758.0,1757.5,3.98292]
[1743947250289,0.05685243,1758.0,1757.4,10.14314]
[1743947250489,0.05685243,1758.0,1757.2,40.941]
[1743947250715,0.05685243,1758.1,1757.3,0.05690379]
[1743947250932,0.05685243,1758.3,1757.6,3.98254]
[1743947251133,0.05685243,1758.3,1757.2,53.193974]
[1743947251134,0.05685243,1758.3,1757.4,3.98294]
[1743947251430,0.05685243,1758.3,1757.5,3.98283]
[1743947251630,0.41413514,1758.2,1757.5,3.98283]
[1743947251935,0.05685243,1758.1,1757.6,3.98267]
[1743947252092,0.9,1758.2,1757.5,3.98283]
[1743947252292,6.683013,1758.0,1757.5,3.98283]
[1743947252491,0.05685243,1757.9,1757.6,3.98267]
[1743947252692,0.05685243,1757.9,1757.5,3.98283]
[1743947252892,1.6425,1757.8,1757.4,3.98299]
[1743947253207,0.05685243,1757.7,1757.3,3.98322]
[1743947253531,0.05685243,1757.7,1757.4,3.98315]
[1743947253905,1.6425,1757.8,1757.4,3.98315]
[1743947254106,0.05685243,1757.7,1757.2,47.101]
[1743947254421,0.05685243,1757.7,1757.2,40.941]
[1743947255234,0.05685243,1757.7,1757.1,3.98373]
[1743947255400,0.05685243,1757.7,1757.1,3.98372]
[1743947255602,0.05685243,1757.7,1757.2,3.9836]
[1743947255935,8.59942896,1757.6,1757.5,3.98288]
[1743947256099,8.59942896,1757.6,1757.3,3.98338]
[1743947256300,8.59942896,1757.6,1757.4,3.98315]
[1743947256643,8.59942896,1757.6,1757.4,4.779683]
[1743947256863,8.96e-06,1757.6,1757.5,10.69293]
[1743947257138,1.6028,1758.5,1758.1,3.98152]
[1743947257440,0.05685243,1758.4,1757.8,14.37914]
[1743947257729,0.05685243,1758.4,1757.8,10.397]
[1743947257894,0.05685243,1758.4,1757.8,3.98222]
[1743947258324,0.05685243,1758.4,1757.8,3.98214]
[1743947258541,0.05685243,1758.4,1757.7,3.98246]
[1743947259042,3.05685243,1758.4,1757.5,6.16]
[1743947259230,2.32220658,1758.3,1757.5,6.16]
[1743947259429,0.05685243,1758.2,1757.5,6.16]
[1743947259832,0.05685243,1758.2,1757.6,3.9826]
[1743947260314,0.05685243,1758.2,1757.5,5.92791756]
[1743947260640,0.05685243,1758.2,1757.6,7.96522]
[1743947260845,0.05685243,1758.2,1757.8,3.98211]
[1743947261141,0.05685243,1758.2,1757.8,3.98221]
[1743947261316,0.05685243,1758.2,1757.7,7.96471]
[1743947261649,0.05685243,1758.2,1757.8,3.98221]
[1743947261847,0.05685243,1758.2,1757.9,3.98197]
[1743947262142,0.05685243,1758.2,1757.8,4.778684]
[1743947262343,0.05685243,1758.2,1757.8,4.778664]
[1743947262543,0.05685243,1758.2,1757.6,3.9827]
[1743947263044,0.05685243,1758.2,1757.6,3.98267]
[1743947263359,0.05685243,1758.5,1758.2,3.98123]
[1743947263643,0.10685243,1758.9,1758.0,3.98179]
[1743947263844,0.29593568,1758.8,1757.9,3.98201]
[1743947264047,1.5225,1758.6,1757.9,5.92791756]
[1743947264246,1.5225,1758.6,1758.0,0.64966373]
[1743947264439,0.05685243,1758.5,1757.9,3.9818]
[1743947264757,0.05685243,1758.5,1757.7,7.96492]
[1743947264947,0.05685243,1758.5,1757.9,3.98191]
[1743947265250,0.05685243,1758.5,1758.0,3.98169]
[1743947265421,0.05685243,1758.5,1757.6,9.91061756]
[1743947265627,0.05685243,1758.5,1757.9,3.98191]
[1743947265828,0.05685243,1758.5,1758.1,3.98148]
[1743947266035,0.05685243,1758.5,1757.9,3.98202]
[1743947266750,0.05685243,1758.5,1757.8,4.0389687]
[1743947266953,0.05685243,1758.5,1757.9,3.98181]
[1743947267626,0.05685243,1758.5,1758.0,3.98178]
[1743947268053,0.05685243,1758.5,1758.2,3.9812]
[1743947268221,0.05685243,1758.5,1757.9,4.778424]
[1743947268222,0.05685243,1758.5,1757.9,0.796404]
[1743947268423,0.05685243,1758.5,1757.9,4.778374]
[1743947268744,0.05685243,1758.5,1757.9,4.778334]
[1743947269075,0.05685243,1758.5,1757.8,3.98224]
[1743947269229,0.05685243,1758.5,1757.8,4.03899703]
[1743947269569,0.05685243,1758.5,1757.8,8.02110703]
[1743947269746,0.05685243,1758.5,1757.8,4.03898703]
[1743947270059,0.05685243,1758.5,1757.8,8.02114703]
[1743947270565,0.41459564,1758.4,1757.6,3.98252]
[1743947270864,1.5094,1758.2,1757.5,3.98292]
[1743947271018,0.05685243,1758.1,1757.5,3.9828]
[1743947271221,0.05685243,1758.1,1757.6,3.98256]
[1743947271432,0.05685243,1758.1,1757.5,3.9828]
[1743947271621,0.05685243,1758.1,1757.6,3.98262]
[1743947271823,0.05685243,1758.1,1757.8,3.98216]
[1743947272357,1.56625243,1758.2,1757.6,3.98268]
[1743947272564,6.72152656,1758.4,1757.7,0.05688692]
[1743947272762,6.72152656,1758.4,1758.1,3.9814]
[1743947273168,6.72152656,1758.4,1758.2,4.03817079]
[1743947273323,6.72152656,1758.4,1758.0,3.98178]
[1743947273528,6.72152656,1758.4,1758.0,7.96341]
[1743947273731,0.05685243,1758.6,1758.1,3.98154]
[1743947273962,0.05685243,1758.6,1758.0,0.796341]
[1743947273963,0.05685243,1758.7,1758.3,3.98098]
[1743947274160,0.05685243,1758.7,1758.2,3.98134]
[1743947274364,0.05685243,1758.7,1758.1,8.01977835]
[1743947274550,0.41588072,1758.6,1758.3,3.98108]
[1743947275059,1.5594,1758.9,1758.6,3.98043]
[1743947275264,1.5594,1758.9,1758.6,3.98034]
[1743947275459,0.05,1758.9,1758.8,3.97998]
[1743947275849,0.05,1758.9,1758.7,3.98005]
[1743947276159,0.05,1758.9,1758.6,3.98042]
[1743947276459,0.05,1758.9,1758.5,9.798]
[1743947276665,0.05,1758.9,1758.8,3.97998]
[1743947277033,0.05,1758.9,1758.6,5.358262]
[1743947277236,0.05,1758.9,1758.4,44.93274]
[1743947277459,0.05,1758.9,1758.4,40.952]
[1743947277625,1.5185,1758.8,1758.4,40.952]
[1743947277829,0.05685243,1758.7,1758.0,17.69956]
[1743947278266,0.05685243,1758.7,1758.0,13.71778]
[1743947278561,3.05685243,1758.7,1757.8,5.92791756]
[1743947278760,0.72098946,1758.6,1757.9,3.98192]
[1743947279063,0.05685243,1758.5,1757.9,3.98192]
[1743947279240,0.05685243,1758.5,1757.8,9.91005756]
[1743947279644,8.49861,1758.8,1757.8,5.92791756]
[1743947279645,4.5185,1758.6,1757.8,5.92791756]
[1743947279864,0.41517322,1758.4,1757.8,5.92791756]
[1743947280174,0.05685243,1758.3,1757.8,5.92791756]
[1743947280475,0.05685243,1758.3,1757.7,44.92846]
[1743947280476,0.05685243,1758.3,1757.7,40.946]
[1743947280631,1.5185,1758.2,1757.7,40.946]
[1743947280828,0.05685243,1758.1,1757.7,40.946]
[1743947281145,0.05685243,1758.1,1757.7,45.0406]
[1743947281336,1.5185,1758.2,1757.7,49.02303]
[1743947281939,1.5185,1758.2,1757.7,49.02292]
[1743947282576,1.5185,1758.2,1758.0,3.98166]
[1743947282869,8.6415755,1758.2,1758.1,3.98157]
[1743947283031,8.6415755,1758.2,1757.7,45.0406]
[1743947283228,8.6415755,1758.2,1757.7,49.02294]
[1743947283656,0.05685243,1758.1,1757.7,49.02291]
[1743947283854,8.6415755,1758.2,1757.8,4.03908434]
[1743947284159,8.6415755,1758.2,1757.8,8.94708277]
[1743947284365,8.6415755,1758.2,1757.9,3.9819]
[1743947284934,8.6415755,1758.2,1758.0,3.98169]
[1743947285166,8.6415755,1758.2,1757.9,3.9819]
[1743947285667,8.6415755,1758.2,1758.0,3.98175]
[1743947286163,8.6415755,1758.2,1757.8,8.89019843]
[1743947286368,8.6415755,1758.1,1757.8,8.89019843]
[1743947286562,8.6415755,1758.1,1757.8,4.90796843]
[1743947286767,8.6415755,1758.1,1757.9,4.52959565]
[1743947286973,8.6415755,1758.1,1757.7,40.946]
[1743947287131,1.57,1757.9,1757.4,5.92791756]
[1743947287335,0.05685243,1757.8,1757.3,3.98333]
[1743947287532,0.05685243,1757.8,1757.4,4.03993662]
[1743947287859,1.57,1757.9,1757.5,3.98274]
[1743947288168,1.57,1757.9,1757.4,3.98314]